fUSD/lending_fUSD_20250724
["ID","MTS","AMOUNT","RATE_DAILY","PERIOD"]
[374584969,1753362668781,-953.0,0.00029827,2]
[374584970,1753362668791,-807.0,0.00029827,2]
[374584971,1753362668801,-3354.0,0.00029827,2]
[374584972,1753362668811,-426.752,0.00029827,2]
[374584973,1753362668820,-2018.0,0.00029827,2]
[374584974,1753362668830,-1269.0,0.00029827,2]
[374584975,1753362668840,-596.0,0.00029827,2]
[374584976,1753362668850,-1688.0,0.00029827,2]
[374584977,1753362668860,-155.17674389,0.00029862,4]
[374584978,1753362668869,-500.0,0.00029863,14]
[374584979,1753362668879,-556.69,0.00029869,120]
[374584980,1753362668889,-264.0,0.0002987,120]
[374584981,1753362668901,-264.0,0.0002988,120]
[374584982,1753362668914,-264.0,0.0002989,120]
[374584983,1753362668922,-994.5,0.000299,7]
[374584984,1753362668928,-400.0,0.000299,10]
[374584985,1753362668936,-17098.39953047,0.0002998,2]
[374584986,1753362668945,-3576.23791,0.0002998,7]
[374584987,1753362668952,-3576.237919,0.0002998,7]
[374584988,1753362668960,-380.924456,0.0002998,7]
[374584989,1753362668968,-380.924453,0.0002998,7]
[374584990,1753362668975,-203.846206,0.0002998,7]
[374584991,1753362668983,-203.8462,0.0002998,7]
[374584992,1753362668990,-9728.11050733,0.00029987,3]
[374584993,1753362668997,-231.33616131,0.0002999,2]
[374584994,1753362669005,-196.924364,0.00029999,7]
[374584995,1753362669012,-196.924364,0.00029999,7]
[374584996,1753362669020,-151.0,0.00029999,7]
[374584997,1753362669029,-245.08781256,0.00029999,2]
[374584998,1753362669037,-304.55165254,0.00029999,2]
[374584999,1753362669047,-496.20911461,0.00029999,2]
[374585000,1753362669060,-50114.78205243,0.0003,15]
[374585001,1753362669070,-4600.0,0.0003,10]
[374585002,1753362669080,-462.57073654,0.0003,5]
[374585003,1753362669090,-1769.57249291,0.0003,2]
[374585004,1753362669102,-161.61772624,0.0003,2]
[374585005,1753362669112,-1064.11860112,0.0003,10]
[374585006,1753362669122,-597.8309615,0.0003,2]
[374585007,1753362669132,-200.0,0.0003,7]
[374585008,1753362669142,-200.0,0.0003,7]
[374585009,1753362669152,-685.05731848,0.0003,2]
[374585010,1753362669163,-595.62420965,0.0003,10]
[374585011,1753362669172,-182.59270559,0.0003,120]
[374585012,1753362669182,-818.33731663,0.0003,120]
[374585013,1753362669194,-230.78711824,0.0003,120]
[374585014,1753362669204,-317.16711344,0.0003,120]
[374585015,1753362669215,-603.20629914,0.0003,120]
[374585016,1753362669225,-159.1964156,0.0003,120]
[374585017,1753362669236,-7561.0,0.0003,3]
[374585018,1753362669246,-1003.42,0.0003,30]
[374585019,1753362669256,-5318.84520449,0.0003,2]
[374585020,1753362669267,-1000.0,0.0003,120]
[374585021,1753362669277,-1000.0,0.0003,120]
[374585022,1753362669287,-906.14,0.0003,30]
[374585023,1753362669298,-2000.0,0.0003,7]
[374585024,1753362669309,-539.999999,0.0003,2]
[374585025,1753362669319,-74512.82,0.0003,7]
[374585026,1753362669329,-240.0,0.0003,120]
[374585027,1753362669339,-151.0,0.0003,7]
[374585028,1753362669349,-151.0,0.0003,7]
[374585029,1753362669360,-151.0,0.0003,7]
[374585030,1753362669370,-247.820589,0.0003,7]
[374585031,1753362669380,-2935.14,0.0003,14]
[374585032,1753362669390,-151.0,0.0003,7]
[374585033,1753362669401,-319.330614,0.0003,7]
[374585034,1753362669410,-319.330609,0.0003,7]
[374585035,1753362669420,-227.1667132,0.0003,7]
[374585036,1753362669431,-151.0,0.0003,7]
[374585037,1753362669441,-236.26895,0.0003,7]
[374585038,1753362669452,-236.268948,0.0003,7]
[374585039,1753362669463,-151.0,0.0003,7]
[374585040,1753362669473,-213.711457,0.0003,7]
[374585041,1753362669483,-213.711465,0.0003,7]
[374585042,1753362669494,-151.0,0.0003,7]
[374585043,1753362669504,-451.254132,0.0003,7]
[374585044,1753362669515,-451.254128,0.0003,7]
[374585045,1753362669527,-151.0,0.0003,7]
[374585046,1753362669537,-151.0,0.0003,7]
[374585047,1753362669547,-194.43,0.0003,2]
[374585048,1753362669557,-209.931242,0.0003,7]
[374585049,1753362669567,-209.931239,0.0003,7]
[374585050,1753362669577,-1500.0,0.0003,2]
[374585051,1753362669589,-4000.0,0.0003,4]
[374585052,1753362669601,-6039.1606506,0.0003001,2]
[374585053,1753362669611,-162.727318,0.0003001,7]
[374585054,1753362669621,-162.727318,0.0003001,7]
[374585055,1753362669633,-254.816878,0.0003001,7]
[374585056,1753362669643,-254.816878,0.0003001,7]
[374585057,1753362669653,-291.830671,0.00030056,7]
[374585058,1753362669663,-1000.0,0.00030071,2]
[374585059,1753362669673,-651.0,0.00030071,2]
[374585060,1753362669683,-591.0,0.00030071,2]
[374585061,1753362669694,-179.35,0.000301,2]
[374585062,1753362669704,-717.39,0.000301,2]
[374585063,1753362669714,-500.0,0.0003012,120]
[374585064,1753362669724,-500.74188561,0.0003013,5]
[374585065,1753362669734,-1001.07915287,0.0003013,120]
[374585066,1753362669743,-500.0,0.00030136,15]
[374585067,1753362669754,-200.0,0.00030137,2]
[374585068,1753362669764,-296.10885903,0.00030137,2]
[374585069,1753362669775,-1000.0,0.00030137,5]
[374585070,1753362669785,-300.0,0.00030137,7]
[374585071,1753362669795,-2672.03063499,0.00030151,2]
[374585072,1753362669804,-182.34416318,0.00030154,4]
[374585073,1753362669814,-226.17919106,0.00030154,4]
[374585074,1753362669824,-151.0,0.00030179,7]
[374585075,1753362669833,-151.0,0.00030179,7]
[374585076,1753362669844,-151.0,0.00030179,7]
[374585077,1753362669857,-151.0,0.00030179,7]
[374585078,1753362669868,-214.33486,0.00030179,7]
[374585079,1753362669879,-214.33486,0.00030179,7]
[374585080,1753362669892,-822.983,0.00030189,2]
[374585081,1753362669900,-6055.0,0.00030189,2]
[374585082,1753362669908,-863.0,0.00030189,2]
[374585083,1753362669918,-4129.0,0.00030189,2]
[374585084,1753362669928,-21379.0,0.00030189,2]
[374585085,1753362669938,-173.0133084,0.00030198,2]
[374585086,1753362669949,-173.01330838,0.00030198,2]
[374585087,1753362669959,-173.01330838,0.00030198,2]
[374585088,1753362669969,-180.0,0.00030205,14]
[374585089,1753362669979,-5737.25896637,0.00030227,2]
[374585090,1753362669989,-361.21258413,0.00030227,2]
[374585091,1753362669999,-155.17674389,0.00030227,4]
[374585092,1753362670009,-1083.0,0.0003025,5]
[374585093,1753362670019,-151.0,0.00030256,7]
[374585094,1753362670030,-150.0,0.00030281,2]
[374585095,1753362670039,-340.0,0.0003029,3]
[374585096,1753362670050,-267.83380174,0.000303,5]
[374585097,1753362670062,-651.0,0.00030345,2]
[374585098,1753362670073,-591.0,0.00030345,2]
[374585099,1753362670084,-332.14,0.000304,2]
[374585100,1753362670094,-426.06,0.000304,2]
[374585101,1753362670105,-805.46,0.000304,2]
[374585102,1753362670115,-500.0,0.0003041,16]
[374585103,1753362670126,-263.1462,0.00030427,30]
[374585104,1753362670137,-151.0,0.00030456,7]
[374585105,1753362670148,-991.191571,0.00030456,7]
[374585106,1753362670158,-182.34416318,0.00030482,4]
[374585107,1753362670169,-226.17919106,0.00030482,4]
[374585108,1753362670178,-10208.35,0.000305,7]
[374585109,1753362670188,-158.94837,0.00030519,7]
[374585110,1753362670200,-158.94837,0.00030519,7]
[374585111,1753362670210,-286.15,0.00030533,30]
[374585112,1753362670220,-152.0,0.00030535,8]
[374585113,1753362670229,-155.17674389,0.00030591,4]
[374585114,1753362670240,-500.0,0.00030597,120]
[374585115,1753362670249,-651.0,0.00030619,2]
[374585116,1753362670260,-591.0,0.00030619,2]
[374585117,1753362670270,-500.0,0.00030666,120]
[374585118,1753362670280,-500.0,0.00030684,17]
[374585119,1753362670290,-530.061499,0.00030685,5]
[374585120,1753362670300,-216.82,0.00030685,7]
[374585121,1753362670310,-151.0,0.000307,120]
[374585122,1753362670319,-437.5,0.000307,3]
[374585123,1753362670329,-437.5,0.000307,3]
[374585124,1753362670338,-9525.27,0.000308,2]
[374585125,1753362670347,-152.078591,0.000308,7]
[374585126,1753362670356,-182.34416318,0.00030809,4]
[374585127,1753362670365,-226.17919106,0.00030809,4]
[374585128,1753362670375,-10504.43992437,0.00030828,2]
[374585129,1753362670384,-651.0,0.00030893,2]
[374585130,1753362670393,-591.0,0.00030893,2]
[374585131,1753362670402,-994.5,0.000309,7]
[374585132,1753362670411,-155.17674389,0.00030955,4]
[374585133,1753362670421,-500.0,0.00030958,18]
[374585134,1753362670431,-287.61899177,0.00030998,2]
[374585135,1753362670440,-39326.19083854,0.00031,2]
[374585136,1753362670452,-363.2,0.00031,7]
[374585137,1753362670462,-3729.64084875,0.00031,120]
[374585138,1753362670472,-236.0,0.00031,7]
[374585139,1753362670481,-943.99,0.00031,7]
[374585140,1753362670491,-154.15190251,0.00031,120]
[374585141,1753362670500,-19373.6407652,0.00031,2]
[374585142,1753362670510,-1765.52,0.00031,7]
[374585143,1753362670520,-966.71,0.00031,7]
[374585144,1753362670530,-31393.96606709,0.00031,7]
[374585145,1753362670929,-500.0,0.00023999,2]
[374585146,1753362670939,-500.0,0.00023999,2]
[374585147,1753362670952,-500.0,0.00023999,2]
[374585148,1753362670962,-500.0,0.00023999,2]
[374585149,1753362670972,-500.0,0.00023999,2]
[374585150,1753362670982,-500.0,0.00023999,2]
[374585151,1753362670992,-500.0,0.00023999,2]
[374585152,1753362671002,-500.0,0.00023999,2]
[374585153,1753362671012,-500.0,0.00023999,2]
[374585154,1753362671022,-106.40771376,0.00023999,2]
[374585155,1753362671036,-393.59228624,0.00023999,2]
[374585156,1753362671046,-198.69948765,0.00023999,2]
[374585157,1753362671069,-301.30051235,0.00023999,2]
[374585158,1753362671079,-500.0,0.00023999,2]
[374585159,1753362671090,-500.0,0.00023999,2]
[374585160,1753362671101,-500.0,0.00023999,2]
[374585161,1753362671111,-39.24431512,0.00023999,2]
[374585171,1753362782919,250.0,0.00015,2]
[374585641,1753363137247,174.53,0.00025496,120]
[374585837,1753363392889,635.12,0.00027397,120]
[374585880,1753363514878,438.0,0.00027397,120]
[374585885,1753363524801,437.12018681,0.00027397,120]
[374586009,1753363830124,846.62349066,0.000273,120]
[374586013,1753363832287,-510.0,0.0001786,2]
[374586014,1753363832298,-50.03134732,0.00019383,2]
[374586015,1753363832312,-824.99068468,0.00019383,2]
[374586016,1753363832322,-510.0,0.00019481,4]
[374586017,1753363832332,-156.587,0.00019785,2]
[374586018,1753363832343,-404.45,0.00019785,2]
[374586019,1753363832353,-1880.58289489,0.000199,3]
[374586020,1753363832363,-25545.29523803,0.0002,4]
[374586021,1753363832378,-2030.43564885,0.0002,4]
[374586031,1753363833958,-888.77010359,0.0002,4]
[374586032,1753363833970,-1597.77014842,0.0002,4]
[374586033,1753363833982,-12717.0310403,0.0002,4]
[374586034,1753363833992,-250.0,0.00020746,2]
[374586035,1753363834002,-230.03402102,0.000209,4]
[374586036,1753363834012,-510.0,0.00021102,6]
[374586037,1753363834022,-162.05,0.00021291,2]
[374586038,1753363834032,-250.0,0.00021291,2]
[374586039,1753363834042,-313.04,0.00021291,2]
[374586040,1753363834052,-3829.29,0.00021291,2]
[374586041,1753363834062,-244.35693863,0.00021515,2]
[374586042,1753363834074,-160.09306137,0.00021515,2]
[374586043,1753363834084,-3002.39266866,0.00022,2]
[374586044,1753363834094,-304.0,0.00022,2]
[374586045,1753363834104,-1782.87746398,0.00022,2]
[374586046,1753363834115,-8408.99886123,0.00022,2]
[374586047,1753363834127,-2902.16360516,0.00022,2]
[374586048,1753363834136,-303.0,0.00022134,2]
[374586049,1753363834146,-1227.58,0.00022155,2]
[374586050,1753363834156,-150.99,0.00022562,2]
[374586051,1753363834169,-3540.98,0.00022562,2]
[374586052,1753363834179,-9999.99,0.00022562,2]
[374586053,1753363834188,-510.0,0.00022722,8]
[374586054,1753363834200,-231.28369723,0.00022932,2]
[374586055,1753363834210,-8362.069344,0.00022932,2]
[374586056,1753363834222,-2922.16564111,0.00023,2]
[374586057,1753363834232,-297.0,0.0002318,2]
[374586058,1753363834242,-404.45,0.00023245,2]
[374586059,1753363834253,-300.66537417,0.00023326,2]
[374586060,1753363834262,-500.0,0.00023471,2]
[374586061,1753363834273,-500.0,0.00023471,2]
[374586062,1753363834283,-304.0,0.00023599,2]
[374586063,1753363834293,-153.0,0.00023836,2]
[374586064,1753363834303,-153.0,0.00023836,2]
[374586065,1753363834313,-153.0,0.00023836,2]
[374586066,1753363834324,-153.0,0.00023836,2]
[374586067,1753363834334,-153.0,0.00023836,2]
[374586068,1753363834344,-153.0,0.00023836,2]
[374586069,1753363834354,-153.0,0.00023836,2]
[374586070,1753363834364,-457.95,0.00023836,2]
[374586071,1753363834375,-407.0,0.00023906,2]
[374586072,1753363834389,-1042.03,0.00024,5]
[374586073,1753363834398,-2554.80973893,0.00024,4]
[374586074,1753363838296,-335.23,0.00021291,2]
[374586075,1753363838307,-2352.79943438,0.00024,4]
[374586076,1753363838579,-14223.59102201,0.00024,4]
[374586077,1753363838591,-2204.914135,0.00024,4]
[374586078,1753363838603,-291.6246969,0.00024,4]
[374586079,1753363838614,-551.09530478,0.00024,4]
[374586080,1753363838626,-1425.19708431,0.00024,4]
[374586243,1753363840376,-4486.27223092,0.00024,4]
[374586245,1753363840391,-11315.63796872,0.00024,4]
[374586247,1753363840400,-1351.69743863,0.00024,5]
[374586249,1753363840410,-585.0,0.00024007,2]
[374586251,1753363840420,-1000.0,0.00024019,2]
[374586253,1753363840429,-500.0,0.00024019,2]
[374586254,1753363840439,-4244.42094892,0.000241,2]
[374586257,1753363840450,-211.01152796,0.00024114,2]
[374586259,1753363840462,-839.91269601,0.00024115,2]
[374586260,1753363840473,-477.18900901,0.00024115,2]
[374586263,1753363840482,-411.44985912,0.0002421,2]
[374586265,1753363840492,-3605.67942252,0.0002421,2]
[374586267,1753363840501,-239.84119403,0.00024301,2]
[374586268,1753363840511,-510.0,0.00024343,10]
[374586271,1753363840521,-291.0,0.0002437,2]
[374586272,1753363840530,-1057.52215546,0.00024386,2]
[374586274,1753363840540,-3110.02286683,0.0002465,2]
[374586277,1753363840550,-163.02301712,0.0002465,2]
[374586279,1753363840559,-11650.74947344,0.0002465,2]
[374586281,1753363840570,-1000.0,0.00024658,2]
[374586283,1753363840579,-151.06,0.000248,2]
[374586284,1753363840588,-960.84196259,0.00024899,2]
[374586287,1753363840598,-404.45,0.00024976,2]
[374586288,1753363840607,-160.469,0.00024982,2]
[374586290,1753363840617,-174.99,0.00025,2]
[374586292,1753363840627,-202.20841108,0.00025,2]
[374586295,1753363840637,-1738.93118052,0.00025,2]
[374586296,1753363840647,-4668.28179396,0.00025,2]
[374586298,1753363840657,-2965.72827127,0.00025,2]
[374586301,1753363840667,-1778.82123566,0.00025,2]
[374586303,1753363840676,-10129.12275041,0.00025,2]
[374586305,1753363840686,-19283.78238421,0.00025,2]
[374586306,1753363840695,-1037.06301301,0.00025,2]
[374586308,1753363840707,-162.98275189,0.00025,2]
[374586311,1753363840717,-160.4,0.00025,2]
[374586312,1753363840726,-943.34526557,0.00025,2]
[374586315,1753363840736,-2125.25,0.00025,2]
[374586317,1753363840745,-500.0,0.00025073,2]
[374586319,1753363840755,-1094.0,0.00025089,2]
[374586320,1753363840765,-1269.0,0.00025089,2]
[374586323,1753363840776,-2018.0,0.00025089,2]
[374586325,1753363840786,-503.713,0.00025089,2]
[374586327,1753363840796,-183.097,0.00025089,2]
[374586329,1753363840806,-1167.0,0.00025089,2]
[374586331,1753363840815,-890.0,0.00025089,2]
[374586334,1753363840824,-3354.0,0.00025089,2]
[374586336,1753363840833,-953.0,0.00025089,2]
[374586340,1753363840843,-4129.0,0.00025089,2]
[374586342,1753363840852,-3292.18446187,0.000251,2]
[374586346,1753363840863,-170.14,0.00025151,7]
[374586348,1753363840873,-1000.0,0.0002519,2]
[374586350,1753363840882,-666.0,0.00025489,3]
[374586352,1753363840892,-168.0,0.00025497,2]
[374586354,1753363840901,-285.0,0.0002555,2]
[374586356,1753363840910,-1057.52215546,0.00025614,2]
[374586358,1753363840920,-500.0,0.00025621,2]
[374586360,1753363840929,-248.71531821,0.0002567,2]
[374586362,1753363840938,-2125.25,0.0002596,2]
[374586364,1753363840950,-510.0,0.00025964,13]
[374586367,1753363840959,-168.0,0.00025974,2]
[374586369,1753363840968,-1569.58,0.00026,2]
[374586371,1753363840977,-414.42,0.00026,2]
[374586373,1753363840987,-414.42,0.000262,2]
[374586375,1753363840997,-26769.97664372,0.000264,2]
[374586377,1753363841006,-168.0,0.00026426,2]
[374586379,1753363841016,-168.0,0.00026491,2]
[374586381,1753363841026,-46650.26199449,0.000265,2]
[374586383,1753363841036,-168.44632081,0.000265,2]
[374586420,1753363841432,-2000.0,0.000266,2]
[374586423,1753363841456,-414.42,0.000267,2]
[374586425,1753363841466,-404.45,0.00026706,2]
[374586427,1753363841476,-279.0,0.0002673,2]
[374586428,1753363841486,-500.0,0.00026789,2]
[374586431,1753363841497,-1057.52215546,0.00026843,2]
[374586433,1753363841507,-244.50514964,0.00026998,2]
[374586434,1753363841517,-219.04040916,0.00026999,2]
[374586437,1753363841527,-250.0,0.00027,2]
[374586438,1753363841536,-1007.90665668,0.00027,2]
[374586441,1753363841546,-150.0,0.00027,5]
[374586443,1753363841556,-200.0,0.00027,2]
[374586444,1753363841565,-219.04040916,0.00027014,2]
[374586446,1753363841575,-219.04040916,0.00027027,2]
[374586448,1753363841585,-257.91778498,0.00027039,2]
[374586450,1753363841595,-244.50514964,0.00027048,2]
[374586453,1753363841605,-244.50514964,0.00027051,2]
[374586455,1753363841614,-219.04040916,0.00027051,2]
[374586456,1753363841624,-500.0,0.00027057,2]
[374586459,1753363841634,-500.0,0.00027057,2]
[374586461,1753363841644,-244.50514964,0.00027059,2]
[374586463,1753363841654,-210.8,0.000271,2]
[374586465,1753363841665,-168.0,0.00027104,2]
[374586467,1753363841675,-3587.4,0.00027123,2]
[374586469,1753363841684,-373.63623205,0.0002716,2]
[374586471,1753363841693,-504.05970123,0.0002716,2]
[374586472,1753363841704,-567.84731045,0.0002716,2]
[374586474,1753363841714,-500.0,0.0002716,2]
[374586476,1753363841723,-210.8,0.000272,2]
[374586478,1753363841733,-500.0,0.0002737,2]
[374586481,1753363841744,-500.0,0.0002737,2]
[374586483,1753363841753,-500.0,0.0002737,2]
[374586485,1753363841762,-500.0,0.0002737,2]
[374586486,1753363841771,-500.99790197,0.0002737,2]
[374586489,1753363841781,-500.0,0.0002737,2]
[374586491,1753363841790,-500.0,0.0002737,2]
[374586492,1753363841799,-4002.65791156,0.0002739,2]
[374586494,1753363841809,-13408.35488232,0.0002739,2]
[374586497,1753363841822,-372.9423,0.0002739,2]
[374586634,1753363843265,-4991.9996459,0.00027297,2]
[374586636,1753363843277,-1085.48289608,0.0002739,2]
[374586638,1753363843287,-584.33,0.00027397,5]
[374586640,1753363843297,-113.44183802,0.00027397,2]
[374586644,1753363843323,-186.55816198,0.00027397,2]
[374586646,1753363843332,-150.0,0.00027397,2]
[374586648,1753363843341,-807.40484257,0.00027425,30]
[374586653,1753363843386,-907.64515743,0.00027425,30]
[374586655,1753363843395,-174.99,0.000275,2]
[374586657,1753363843404,-195.76235577,0.000275,2]
[374586659,1753363843413,-534.69262092,0.000275,2]
[374586661,1753363843423,-510.0,0.00027585,15]
[374586663,1753363843432,-414.42,0.000276,2]
[374586665,1753363843442,-584.33,0.00027671,6]
[374586667,1753363843455,-3322.64068419,0.00027671,7]
[374586669,1753363843464,-168.0,0.00027712,2]
[374586671,1753363843474,-500.0,0.00027918,5]
[374586673,1753363843484,-273.0,0.0002792,3]
[374586675,1753363843495,-500.0,0.00027934,120]
[374586677,1753363843505,-500.0,0.00027934,120]
[374586679,1753363843515,-500.0,0.00027934,120]
[374586681,1753363843524,-584.33,0.00027945,7]
[374586683,1753363843534,-4430.45913012,0.00028,60]
[374586684,1753363843543,-1057.52215546,0.00028071,2]
[374586687,1753363843553,-440.663789,0.00028079,3]
[374586688,1753363843563,-14889.4505321,0.00028079,3]
[374586691,1753363843572,-959.0,0.00028089,2]
[374586693,1753363843583,-808.435,0.00028089,2]
[374586696,1753363843592,-1254.573,0.00028089,2]
[374586698,1753363843603,-890.0,0.00028089,2]
[374586699,1753363843612,-3354.0,0.00028089,2]
[374586701,1753363843621,-953.0,0.00028089,2]
[374586703,1753363843631,-4129.0,0.00028089,2]
[374586706,1753363843641,-150.0,0.00028118,2]
[374586708,1753363843650,-584.33,0.00028219,8]
[374586710,1753363843659,-1000.0,0.00028338,2]
[374586712,1753363843669,-267.46074303,0.00028408,2]
[374586714,1753363843678,-404.45,0.00028437,2]
[374586716,1753363843688,-584.33,0.00028493,9]
[374586718,1753363843698,-159.78,0.00028509,20]
[374586720,1753363843709,-2526.545,0.000287,20]
[374586722,1753363843719,-584.33,0.00028767,10]
[374586724,1753363843728,-150.0,0.00028839,2]
[374586726,1753363843737,-500.0,0.00028973,5]
[374586728,1753363843747,-44668.3515962,0.0002899,3]
[374586730,1753363843757,-24644.32670422,0.00029,2]
[374586734,1753363843788,-10572.60879872,0.00029,2]
[374586740,1753363843835,-732.542,0.00029,2]
[374586742,1753363843847,-370.09000001,0.00029,2]
[374586745,1753363843869,-1710.37660545,0.00029,2]
[374586748,1753363843881,-2915.92,0.00029,2]
[374587013,1753363846386,-807.0,0.00025089,2]
[374587015,1753363846396,-29715.77474988,0.00029,2]
[374587017,1753363846406,-3471.90964367,0.00029,2]
[374587019,1753363846417,-584.33,0.00029041,11]
[374587021,1753363846427,-267.0,0.000291,3]
[374587023,1753363846437,-5800.0,0.000292,2]
[374587025,1753363846447,-510.0,0.00029205,17]
[374587027,1753363846460,-5800.0,0.00029208,2]
[374587029,1753363846469,-12642.4161163,0.00029215,3]
[374587031,1753363846479,-1446.09619625,0.00029217,2]
[374587036,1753363846520,-18.95031547,0.00029217,2]
[374587039,1753363846532,-3863.2255353,0.00029217,2]
[374587041,1753363846543,-471.72795298,0.00029217,2]
[374587043,1753363846553,-29.53672241,0.00029223,3]
[374587045,1753363846566,-14859.91380969,0.00029223,3]
[374587047,1753363846576,-5800.0,0.00029225,2]
[374587049,1753363846586,-5800.0,0.00029234,2]
[374587051,1753363846595,-5800.0,0.00029242,2]
[374587052,1753363846604,-5800.0,0.00029251,2]
[374587054,1753363846614,-12642.4161163,0.00029256,3]
[374587056,1753363846623,-5800.0,0.00029259,2]
[374587058,1753363846633,-14889.4505321,0.00029266,3]
[374587059,1753363846642,-12642.4161163,0.00029266,3]
[374587061,1753363846652,-1006.5632,0.00029267,2]
[374587063,1753363846662,-5800.0,0.00029268,2]
[374587065,1753363846671,-5800.0,0.00029276,2]
[374587066,1753363846681,-5800.0,0.00029285,2]
[374587068,1753363846690,-5800.0,0.00029293,2]
[374587070,1753363846700,-1057.52215546,0.00029299,2]
[374587072,1753363846710,-2000.0,0.000293,2]
[374587073,1753363846719,-584.33,0.00029315,12]
[374587075,1753363846729,-1000.0,0.00029499,2]
[374587077,1753363846739,-2110.0,0.000295,2]
[374587079,1753363846749,-1000.0,0.00029521,5]
[374587081,1753363846758,-150.0,0.0002956,2]
[374587082,1753363846768,-584.33,0.00029589,13]
[374587084,1753363846777,-304.79,0.00029596,2]
[374587086,1753363846787,-174.53,0.00029745,120]
[374587088,1753363846796,-277.35679052,0.00029777,2]
[374587090,1753363846806,-209.0,0.000298,2]
[374587091,1753363846816,-313.04,0.00029807,2]
[374587093,1753363846825,-12642.4161163,0.00029813,3]
[374587095,1753363846835,-29778.9010641,0.00029823,3]
[374587097,1753363846844,-25284.8322327,0.00029823,3]
[374587098,1753363846853,-47337.41070647,0.00029833,2]
[374587100,1753363846863,-304.0,0.00029836,2]
[374587102,1753363846872,-584.33,0.00029863,14]
[374587105,1753363846882,-500.0,0.00029973,5]
[374587107,1753363846891,-500.0,0.00029973,5]
[374587109,1753363846901,-503.80227597,0.00029973,5]
[374587111,1753363846911,-12642.4161163,0.0002998,3]
[374587112,1753363846921,-14889.4505321,0.0002999,3]
[374587114,1753363846931,-12642.4161163,0.0002999,3]
[374587116,1753363846940,-500.0,0.00029999,2]
[374587118,1753363846950,-500.0,0.00029999,2]
[374587119,1753363846960,-500.0,0.00029999,2]
[374587121,1753363846970,-500.0,0.00029999,2]
[374587123,1753363846979,-500.0,0.00029999,2]
[374587125,1753363846989,-500.0,0.00029999,2]
[374587126,1753363846998,-500.0,0.00029999,2]
[374587128,1753363847007,-500.0,0.00029999,2]
[374587130,1753363847016,-500.0,0.00029999,2]
[374587132,1753363847026,-500.0,0.00029999,2]
[374587134,1753363847036,-500.0,0.00029999,2]
[374587135,1753363847045,-500.0,0.00029999,2]
[374587137,1753363847054,-500.0,0.00029999,2]
[374587139,1753363847064,-438.11125333,0.00029999,2]
[374587141,1753363847075,-500.0,0.00029999,2]
[374587143,1753363847084,-500.0,0.00029999,2]
[374587144,1753363847094,-500.0,0.00029999,2]
[374587146,1753363847103,-500.0,0.00029999,2]
[374587148,1753363847113,-500.0,0.00029999,2]
[374587150,1753363847122,-500.0,0.00029999,2]
[374587152,1753363847132,-500.0,0.00029999,2]
[374587154,1753363847141,-500.0,0.00029999,2]
[374587155,1753363847151,-500.0,0.00029999,2]
[374587157,1753363847160,-500.0,0.00029999,2]
[374587159,1753363847170,-500.0,0.00029999,2]
[374587161,1753363847180,-500.0,0.00029999,2]
[374587163,1753363847190,-500.0,0.00029999,2]
[374587165,1753363847199,-500.0,0.00029999,2]
[374587167,1753363847210,-500.0,0.00029999,2]
[374587169,1753363847220,-500.0,0.00029999,2]
[374587170,1753363847230,-500.0,0.00029999,2]